bitfinex-derivatives/quotes_ETHF0:USTF0_20260117
["timestamp","ask_amount","ask_price","bid_price","bid_amount"]
[1768649334662,1.16781192,3302.7,3301.2,0.13676085]
[1768649334862,1.16781192,3302.6,3301.2,0.13676085]
[1768649335062,0.91292905,3302.5,3301.2,0.13676085]
[1768649335264,0.91292905,3302.4,3301.2,0.13676085]
[1768649335472,0.91292905,3302.3,3301.2,0.13676085]
[1768649335767,0.14241885,3302.8,3301.2,0.13676085]
[1768649335968,1.16780101,3302.7,3301.2,0.13676085]
[1768649336166,1.16780101,3302.6,3301.2,0.13676085]
[1768649336359,0.91292107,3302.5,3301.2,0.13676085]
[1768649336569,0.91292107,3302.4,3301.2,0.13676085]
[1768649336767,0.14241885,3302.8,3301.2,0.13676085]
[1768649336965,1.1677919,3302.7,3301.2,0.13676085]
[1768649337274,1.1677919,3302.6,3301.2,0.13676085]
[1768649337468,0.91291437,3302.5,3301.2,0.13676085]
[1768649337664,0.14241885,3302.8,3301.2,0.13676085]
[1768649337865,1.16776666,3302.7,3301.2,0.13676085]
[1768649338069,0.91289609,3302.6,3301.2,0.13676085]
[1768649338268,0.91289609,3302.5,3301.2,0.13676085]
[1768649338469,0.14241885,3302.8,3301.2,0.13676085]
[1768649338667,0.91287987,3302.7,3301.2,0.13676085]
[1768649338867,0.91287987,3302.6,3301.2,0.13676085]
[1768649339068,0.91287987,3302.5,3301.2,0.13676085]
[1768649339271,0.14241885,3302.8,3301.2,0.13676085]
[1768649339465,0.91286929,3302.7,3301.2,0.13676085]
[1768649339669,0.91286929,3302.6,3301.2,0.13676085]
[1768649339973,0.91286929,3302.5,3301.2,0.13676085]
[1768649340170,0.14241885,3302.8,3301.2,0.13676085]
[1768649340372,0.91102435,3302.7,3301.2,0.13676085]
[1768649340566,0.91102435,3302.6,3301.2,0.13676085]
[1768649340762,0.91102435,3302.5,3301.2,0.13676085]
[1768649340965,0.14241885,3302.8,3301.2,0.13676085]
[1768649341174,0.91102472,3302.7,3301.2,0.13676085]
[1768649341373,0.91102472,3302.6,3301.2,0.13676085]
[1768649341577,0.91102472,3302.5,3301.2,0.13676085]
[1768649341769,0.14241885,3302.8,3301.2,0.13676085]
[1768649341968,0.91101617,3302.7,3301.2,0.13676085]
[1768649342172,0.91101617,3302.6,3301.2,0.13676085]
[1768649342471,0.91101617,3302.5,3301.2,0.13676085]
[1768649342674,0.14241885,3302.8,3301.2,0.13676085]
[1768649342881,0.91101069,3302.7,3301.2,0.13676085]
[1768649343067,0.91101069,3302.6,3301.2,0.13676085]
[1768649343268,0.91101069,3302.5,3301.2,0.13676085]
[1768649343474,0.14241885,3302.8,3301.2,0.13676085]
[1768649343674,0.13635637,3302.6,3301.1,0.1]
[1768649343974,0.91100685,3302.5,3301.1,0.1]
[1768649344164,0.13988645,3302.8,3301.1,0.2421755]
[1768649344368,0.9110067,3302.7,3301.1,0.2421755]
[1768649344568,0.9110067,3302.6,3301.1,0.2421755]
[1768649344864,0.9110067,3302.5,3301.1,0.2421755]
[1768649345068,0.13988645,3302.8,3301.1,0.2421755]
[1768649345268,0.91100523,3302.7,3301.1,0.2421755]
[1768649345468,0.91100523,3302.6,3301.1,0.2421755]
[1768649345668,0.91100523,3302.5,3301.1,0.2421755]
[1768649345867,0.13988645,3302.8,3301.1,0.2421755]
[1768649346077,0.91100475,3302.7,3301.1,0.2421755]
[1768649346280,0.91100475,3302.6,3301.1,0.2421755]
[1768649346576,0.91100475,3302.5,3301.1,0.2421755]
[1768649346777,0.13635637,3302.7,3301.1,0.2421755]
[1768649346970,0.91100581,3302.6,3301.1,0.2421755]
[1768649347169,0.91100581,3302.5,3301.1,0.2421755]
[1768649347370,0.13635637,3302.7,3301.1,0.2421755]
[1768649347573,0.91100899,3302.6,3301.1,0.2421755]
[1768649347773,0.91100899,3302.5,3301.1,0.2421755]
[1768649348075,0.13635637,3302.7,3301.1,0.2421755]
[1768649348264,0.91100901,3302.6,3301.1,0.2421755]
[1768649348469,0.91100901,3302.5,3301.1,0.2421755]
[1768649348769,0.13635637,3302.7,3301.1,0.2421755]
[1768649348967,0.91101139,3302.6,3301.1,0.2421755]
[1768649349179,0.91101139,3302.5,3301.1,0.2421755]
[1768649349376,0.13635637,3302.7,3301.1,0.2421755]
[1768649349673,0.91101603,3302.6,3301.1,0.2421755]
[1768649349976,0.91101603,3302.5,3301.1,0.2421755]
[1768649350177,0.13635637,3302.7,3301.1,0.2421755]
[1768649350378,0.91101677,3302.6,3301.1,0.2421755]
[1768649350578,0.91101677,3302.5,3301.4,0.97932372]
[1768649350882,0.00353008,3302.8,3301.4,0.97932372]
[1768649351179,0.91099717,3302.7,3301.4,1.12149922]
[1768649351379,0.91099717,3302.6,3301.5,0.1421755]
[1768649351572,0.00353008,3302.8,3301.5,0.1421755]
[1768649351767,0.91087274,3302.7,3301.5,0.1421755]
[1768649351980,0.91087274,3302.6,3301.5,0.1421755]
[1768649352173,0.00353008,3302.8,3301.5,0.1421755]
[1768649352375,0.90725534,3302.7,3301.5,0.1421755]
[1768649352574,0.00353008,3302.8,3301.5,0.1421755]
[1768649352775,0.90725661,3302.7,3301.5,0.1421755]
[1768649352968,0.00353008,3302.8,3301.5,0.1421755]
[1768649353174,0.90725629,3302.7,3301.5,0.1421755]
[1768649353378,0.00353008,3302.8,3301.5,0.1421755]
[1768649353577,0.90719349,3302.7,3301.5,0.1421755]
[1768649353777,0.00353008,3302.8,3301.5,0.1421755]
[1768649353978,0.90719349,3302.7,3301.5,0.1421755]
[1768649354178,0.00353008,3302.8,3301.5,0.1421755]
[1768649354386,0.90714008,3302.7,3301.5,0.1421755]
[1768649354584,0.00353008,3302.8,3301.5,0.1421755]
[1768649354880,0.90714296,3302.7,3301.5,0.1421755]
[1768649355188,0.00353008,3302.8,3301.5,0.1421755]
[1768649355384,0.90710013,3302.7,3301.5,0.1421755]
[1768649355587,0.00353008,3302.8,3301.5,0.1421755]
[1768649355890,0.90709074,3302.7,3301.5,0.1421755]
[1768649356185,0.00353008,3302.8,3301.5,0.1421755]
[1768649356383,0.9070906,3302.7,3301.5,0.1421755]
[1768649356584,0.00353008,3302.8,3301.5,0.1421755]
[1768649356881,0.90704692,3302.7,3301.5,0.1421755]
[1768649357074,0.00353008,3302.8,3301.5,0.1421755]
[1768649357273,0.90704706,3302.7,3301.5,0.1421755]
[1768649357473,0.00353008,3302.8,3301.5,0.1421755]
[1768649357684,0.90701401,3302.7,3301.5,0.1421755]
[1768649357886,0.00353008,3302.8,3301.5,0.1421755]
[1768649358075,0.90701415,3302.7,3301.5,0.1421755]
[1768649358274,0.00353008,3302.8,3301.5,0.1421755]
[1768649358486,0.90698938,3302.7,3301.5,0.1421755]
[1768649358688,0.00353008,3302.8,3301.5,0.1421755]
[1768649358885,0.90698804,3302.7,3301.5,0.1421755]
[1768649359191,0.00353008,3302.8,3301.5,0.1421755]
[1768649359379,0.90697015,3302.7,3301.5,0.1421755]
[1768649359678,0.00353008,3302.8,3301.5,0.1421755]
[1768649359879,0.9069695,3302.7,3301.5,0.1421755]
[1768649360086,0.00353008,3302.8,3301.5,0.1421755]
[1768649360384,0.90696671,3302.7,3301.5,0.1421755]
[1768649360586,0.00353008,3302.8,3301.5,0.1421755]
[1768649360885,0.90694043,3302.7,3301.5,0.1421755]
[1768649361087,0.00353008,3302.8,3301.5,0.1421755]
[1768649361385,0.90694043,3302.7,3301.5,0.1421755]
[1768649361580,0.00353008,3302.8,3301.5,0.1421755]
[1768649361783,0.90692076,3302.7,3301.5,0.1421755]
[1768649361977,0.00353008,3302.8,3301.5,0.1421755]
[1768649362180,0.90692062,3302.7,3301.5,0.1421755]
[1768649362380,0.00353008,3302.8,3301.5,0.1421755]
[1768649362581,0.90690484,3302.7,3301.5,0.1421755]
[1768649362782,0.00353008,3302.8,3301.5,0.1421755]
[1768649363081,0.90690485,3302.7,3301.5,0.1421755]
[1768649363286,0.00353008,3302.8,3301.5,0.1421755]
[1768649363580,0.906891,3302.7,3301.5,0.1421755]
[1768649363781,0.00353008,3302.8,3301.5,0.1421755]
[1768649363988,0.906891,3302.7,3301.5,0.1421755]
[1768649364285,0.00353008,3302.8,3301.5,0.1421755]
[1768649364484,0.90688416,3302.7,3301.5,0.1421755]
[1768649364689,0.00353008,3302.8,3301.5,0.1421755]
[1768649364991,0.90688417,3302.7,3301.5,0.1421755]
[1768649365190,0.00353008,3302.8,3301.5,0.1421755]
[1768649365491,0.90688417,3302.7,3301.5,0.1421755]
[1768649365690,0.00353008,3302.8,3301.5,0.1421755]
[1768649365891,0.90688153,3302.7,3301.5,0.1421755]
[1768649366092,0.00353008,3302.8,3301.5,0.1421755]
[1768649366282,0.90688153,3302.7,3301.5,0.1421755]
[1768649366481,0.00353008,3302.8,3301.5,0.1421755]
[1768649366681,0.90688289,3302.7,3301.5,0.1421755]
[1768649366888,0.00353008,3302.8,3301.5,0.1421755]
[1768649367086,0.90687643,3302.7,3301.5,0.1421755]
[1768649367286,0.00353008,3302.8,3301.5,0.1421755]
[1768649367481,0.90685016,3302.7,3301.5,0.1421755]
[1768649367684,0.00353008,3302.8,3301.5,0.1421755]
[1768649367883,0.90685013,3302.7,3301.5,0.1421755]
[1768649368183,0.00353008,3302.8,3301.5,0.1421755]
[1768649368483,0.90682282,3302.7,3301.5,0.1421755]
[1768649368682,0.00353008,3302.8,3301.5,0.1421755]
[1768649368885,0.90682643,3302.7,3301.5,0.1421755]
[1768649369092,0.00353008,3302.8,3301.5,0.1421755]
[1768649374702,0.00353008,3302.8,3301.1,0.1]
[1768649374703,0.00353008,3302.8,3301.9,0.13134077]
[1768649374895,0.00353008,3302.8,3301.9,1.11066449]
[1768649375597,0.13415169,3303.6,3301.9,1.11066449]
[1768649375798,1.04244964,3303.5,3301.9,1.11066449]
[1768649375984,0.90829795,3303.4,3301.9,1.11066449]
[1768649376185,0.90829795,3303.3,3301.9,1.11066449]
[1768649376398,0.13415169,3303.5,3301.9,1.11066449]
[1768649376600,1.04219321,3303.4,3301.9,1.11066449]
[1768649376900,0.90804152,3303.3,3301.9,1.11066449]
[1768649377101,0.13415169,3303.4,3301.9,1.11066449]
[1768649377291,0.90804166,3303.3,3301.9,1.11066449]
[1768649377490,0.13415169,3303.4,3301.9,1.11066449]
[1768649377691,0.90784955,3303.3,3301.9,1.11066449]
[1768649377891,0.13415169,3303.4,3301.9,1.11066449]
[1768649378092,1.04200933,3303.3,3301.9,0.13134077]
[1768649378292,0.13415169,3303.3,3301.9,0.13134077]
[1768649387805,0.13415169,3303.3,3301.8,0.97932372]
[1768649388010,0.13415169,3303.3,3301.7,0.15148]
[1768649389314,0.13415169,3303.3,3302.0,0.9790024]
[1768649400220,0.90903101,3303.2,3302.0,0.9790024]
[1768649400521,0.13415169,3303.3,3302.0,0.9790024]
[1768649400722,0.90913921,3303.2,3301.7,0.15148]
[1768649401016,0.13415169,3303.3,3302.2,0.9790024]
[1768649401216,0.90913935,3303.2,3302.2,0.9790024]
[1768649401417,0.13415169,3303.3,3302.2,0.9790024]
[1768649401621,0.90926185,3303.2,3302.2,0.9790024]
[1768649401921,0.13415169,3303.3,3302.2,0.9790024]
[1768649402123,0.90926185,3303.2,3302.2,0.9790024]
[1768649402324,0.13415169,3303.3,3302.2,0.9790024]
[1768649402621,0.90940214,3303.2,3302.2,0.9790024]
[1768649402822,0.13415169,3303.3,3302.2,0.9790024]
[1768649403022,0.90940214,3303.2,3302.2,0.9790024]
[1768649403219,0.13415169,3303.3,3302.2,0.9790024]
[1768649403424,0.90958351,3303.2,3302.2,0.9790024]
[1768649403623,0.13415169,3303.3,3302.2,0.9790024]
[1768649403824,0.90958351,3303.2,3302.2,0.9790024]
[1768649404014,0.13415169,3303.3,3302.2,0.9790024]
[1768649404315,0.90958351,3303.2,3302.2,0.9790024]
[1768649404510,0.13415169,3303.3,3302.2,0.9790024]
[1768649404814,0.90981001,3303.2,3302.2,0.9790024]
[1768649405010,0.13415169,3303.3,3302.2,0.9790024]
[1768649405212,0.90981001,3303.2,3302.2,0.9790024]
[1768649405415,0.13415169,3303.3,3302.2,0.9790024]
[1768649405714,0.90978865,3303.2,3302.2,0.9790024]
[1768649405910,0.13415169,3303.3,3302.4,0.9790024]
[1768649406115,0.9097736,3303.2,3302.4,0.9790024]
[1768649406324,0.13415169,3303.3,3302.4,0.9790024]
[1768649406519,0.90977564,3303.2,3302.4,0.9790024]
[1768649406718,0.13415169,3303.3,3302.4,0.9790024]
[1768649406919,0.90977713,3303.2,3302.4,0.9790024]
[1768649407121,0.13415169,3303.3,3302.4,0.9790024]
[1768649407417,0.90977713,3303.2,3302.4,0.9790024]
[1768649407722,0.13415169,3303.3,3302.4,0.9790024]
[1768649407917,0.90976442,3303.2,3302.4,0.9790024]
[1768649408117,0.13415169,3303.3,3302.4,0.9790024]
[1768649408317,0.90976442,3303.2,3302.4,0.9790024]
[1768649408524,0.13415169,3303.3,3302.4,0.9790024]
[1768649408725,0.90975585,3303.2,3302.4,0.9790024]
[1768649408926,0.13415169,3303.3,3302.4,0.9790024]
[1768649409230,0.90975571,3303.2,3302.2,0.9790024]
[1768649409530,0.13415169,3303.3,3302.2,0.9790024]
[1768649409719,0.90974261,3303.2,3302.2,0.9790024]
[1768649409919,0.13415169,3303.3,3302.2,0.9790024]
[1768649410219,0.90975512,3303.2,3302.2,0.9790024]
[1768649410420,0.13415169,3303.3,3302.2,0.9790024]
[1768649410623,0.90975542,3303.2,3302.2,0.9790024]
[1768649410826,0.13415169,3303.3,3302.2,0.9790024]
[1768649411027,0.90975137,3303.2,3302.2,0.9790024]
[1768649411226,0.13415169,3303.3,3302.2,0.9790024]
[1768649411429,0.90975884,3303.2,3302.2,0.9790024]
[1768649411626,0.13415169,3303.3,3302.2,0.9790024]
[1768649411930,0.90975884,3303.2,3302.2,0.9790024]
[1768649412131,0.13415169,3303.3,3302.2,0.9790024]
[1768649412321,0.90975884,3303.2,3302.2,0.9790024]
[1768649412522,0.13415169,3303.3,3302.2,0.9790024]
[1768649412816,0.90977151,3303.2,3302.2,0.9790024]
[1768649413020,0.13415169,3303.3,3302.2,0.9790024]
[1768649413319,0.90977151,3303.2,3302.2,0.9790024]
[1768649413520,0.13415169,3303.3,3302.2,0.9790024]
[1768649413718,0.90978826,3303.2,3302.2,0.9790024]
[1768649413928,0.13415169,3303.3,3302.2,0.9790024]
[1768649414129,0.90978826,3303.2,3302.2,0.9790024]
[1768649414330,0.13415169,3303.3,3302.2,0.9790024]
[1768649414529,0.90981062,3303.2,3302.2,0.9790024]
[1768649414731,0.13415169,3303.3,3302.2,0.9790024]
[1768649414931,0.90981062,3303.2,3302.2,0.9790024]
[1768649415133,0.13415169,3303.3,3302.2,0.9790024]
[1768649415326,0.90981062,3303.2,3302.2,0.9790024]
[1768649415526,0.13415169,3303.3,3302.2,0.9790024]
[1768649415726,0.9098395,3303.2,3302.2,0.9790024]
[1768649415928,0.13415169,3303.3,3302.2,0.9790024]
[1768649416125,0.90983965,3303.2,3302.2,0.9790024]
[1768649416325,0.90987595,3303.1,3302.2,0.9790024]
[1768649416525,0.13415169,3303.3,3302.2,0.9790024]
[1768649416726,0.90987595,3303.2,3302.2,0.9790024]
[1768649417026,0.9790024,3303.0,3301.7,1.1304824]
[1768649417227,0.90987595,3302.9,3301.7,1.1304824]
[1768649417627,0.13292239,3303.1,3301.7,1.1304824]
[1768649417942,0.90987027,3303.0,3301.7,1.1304824]
[1768649418137,0.90987027,3302.9,3301.7,1.1304824]
[1768649418329,0.13292239,3303.1,3301.7,1.1304824]
[1768649418529,0.90980143,3303.0,3301.7,1.1304824]
[1768649418729,0.90980143,3302.9,3301.7,1.1304824]
[1768649418928,0.13292239,3303.1,3301.7,1.1304824]
[1768649419125,0.90980138,3303.0,3301.7,0.9790024]
[1768649419331,0.90980138,3302.9,3301.7,0.9790024]
[1768649419531,0.13292239,3303.1,3301.7,0.9790024]
[1768649419735,0.90975541,3303.0,3301.7,0.9790024]
[1768649419933,0.90975541,3302.9,3301.7,0.9790024]
[1768649420136,0.13292239,3303.1,3301.7,0.9790024]
[1768649420435,0.90975563,3303.0,3301.7,0.9790024]
[1768649420634,0.90975563,3302.9,3301.7,0.9790024]
[1768649420935,0.13292239,3303.1,3301.9,0.9790024]
[1768649421137,0.90971963,3303.0,3301.9,0.9790024]
[1768649421335,0.90971963,3302.9,3301.4,0.13173567]
[1768649421538,0.13292239,3303.1,3301.7,0.9790024]
[1768649421736,1.04583502,3303.0,3301.7,0.9790024]
[1768649421938,0.90971504,3302.9,3301.7,0.9790024]
[1768649427942,1.04583502,3302.9,3301.4,0.13173567]
[1768649428142,1.04583502,3302.9,3301.6,0.9790024]
[1768649428143,0.13611998,3302.9,3301.6,0.9790024]
[1768649428345,0.13611998,3302.9,3301.7,0.9790024]
[1768649432151,1.0414787,3302.8,3301.3,0.52188131]
[1768649432450,0.13276643,3302.8,3301.5,0.9790024]
[1768649433048,0.9790024,3302.9,3301.6,0.13462928]
[1768649433247,0.15141,3303.3,3302.1,0.9790024]
[1768649433443,0.13276643,3303.1,3301.2,0.15151]
[1768649433644,0.9086488,3303.0,3302.0,0.9790024]
[1768649433846,0.9086488,3302.9,3302.0,0.9790024]
[1768649434040,0.15141,3303.3,3302.2,0.9790024]
[1768649434341,1.16166259,3303.2,3302.2,0.9790024]
[1768649434544,1.16166259,3303.1,3302.2,0.9790024]
[1768649434744,0.90864594,3303.0,3302.2,0.9790024]
[1768649434941,0.90864594,3302.9,3302.2,0.9790024]
[1768649435145,0.15141,3303.3,3301.2,0.15151]
[1768649435344,1.16166058,3303.2,3302.1,0.9790024]
[1768649435548,1.16166058,3303.1,3302.1,0.9790024]
[1768649435751,0.90864396,3303.0,3302.1,0.9790024]
[1768649436054,0.90864396,3302.9,3302.1,0.9790024]
[1768649436255,0.15141,3303.3,3302.1,0.9790024]
[1768649436452,1.16166144,3303.2,3302.1,0.9790024]
[1768649436653,1.16166144,3303.1,3302.1,0.9790024]
[1768649436853,0.90864736,3303.0,3302.2,0.9790024]
[1768649437046,0.15141,3303.3,3302.2,0.9790024]
[1768649437247,1.16164202,3303.2,3302.2,0.9790024]
[1768649437458,0.90863103,3303.1,3302.2,0.9790024]
[1768649437760,0.90863103,3303.0,3302.2,0.9790024]
[1768649437970,0.15141,3303.3,3302.2,0.9790024]
[1768649438178,0.90866095,3303.2,3302.2,0.9790024]
[1768649438374,0.90866095,3303.1,3302.2,0.9790024]
[1768649438577,0.90866095,3303.0,3302.2,0.9790024]
[1768649438765,0.15141,3303.3,3302.2,0.9790024]
[1768649439073,1.16172616,3303.2,3302.2,0.9790024]
[1768649439276,0.90869674,3303.1,3302.2,0.9790024]
[1768649439480,0.90869674,3303.0,3302.2,0.9790024]
[1768649439772,0.15141,3303.3,3302.2,0.9790024]
[1768649439974,1.16178433,3303.2,3302.2,0.9790024]
[1768649440169,0.90874223,3303.1,3302.2,0.9790024]
[1768649440375,0.90874223,3303.0,3302.2,0.9790024]
[1768649440681,0.15141,3303.3,3302.2,0.9790024]
[1768649440878,1.16184624,3303.2,3302.2,0.9790024]
[1768649441177,1.16184624,3303.1,3302.3,0.9790024]
[1768649441371,0.90879067,3303.0,3302.3,0.9790024]
[1768649441571,0.90879067,3302.9,3302.3,0.9790024]
[1768649441772,0.15141,3303.3,3302.3,0.9790024]
[1768649441971,1.16192324,3303.2,3302.3,0.9790024]
[1768649442172,1.16192324,3303.1,3302.3,0.9790024]
[1768649442472,0.90885082,3303.0,3302.3,0.9790024]
[1768649442672,0.90885082,3302.9,3302.3,0.9790024]
[1768649442860,0.15141,3303.3,3302.3,0.9790024]
[1768649443066,1.16201336,3303.2,3302.3,0.9790024]
[1768649443266,1.16201336,3303.1,3302.3,0.9790024]
[1768649443478,0.90892138,3303.0,3302.3,0.9790024]
[1768649443775,0.90892138,3302.9,3302.3,0.9790024]
[1768649443977,0.15141,3303.3,3302.3,0.9790024]
[1768649444178,1.16211817,3303.2,3302.3,0.9790024]
[1768649444374,1.16220252,3303.1,3302.3,0.9790024]
[1768649444570,0.90908787,3303.0,3302.3,0.9790024]
[1768649444770,0.90908787,3302.9,3302.3,0.9790024]
[1768649445064,0.15141,3303.3,3302.3,0.9790024]
[1768649445268,1.16224265,3303.2,3302.3,0.9790024]
[1768649445469,1.16224265,3303.1,3302.3,0.9790024]
[1768649445665,0.90910114,3303.0,3302.3,0.9790024]
[1768649445873,0.90910114,3302.9,3302.3,0.9790024]
[1768649446069,0.15141,3303.3,3302.3,0.9790024]
[1768649446270,1.16237863,3303.2,3302.3,0.9790024]
[1768649446475,1.16237863,3303.1,3302.3,0.9790024]
[1768649446768,0.90920913,3303.0,3302.3,0.9790024]
[1768649446975,0.90920913,3302.9,3302.3,0.9790024]
[1768649447174,0.15141,3303.3,3302.3,0.9790024]
[1768649447376,1.16261042,3303.2,3302.3,0.9790024]
[1768649447580,1.16261042,3303.1,3302.3,0.9790024]
[1768649447777,0.90939753,3303.0,3302.3,0.9790024]
[1768649448080,0.90939753,3302.9,3302.3,0.9790024]
[1768649448374,0.15141,3303.3,3302.3,0.9790024]
[1768649448574,1.16264421,3303.2,3302.3,0.9790024]
[1768649448777,1.16264421,3303.1,3302.3,0.9790024]
[1768649449082,0.90941925,3303.0,3302.3,0.9790024]
[1768649449373,0.90941925,3302.9,3302.3,0.9790024]
[1768649449583,0.15141,3303.3,3302.3,0.9790024]
[1768649449772,1.16266536,3303.2,3302.3,0.9790024]
[1768649449970,1.16266536,3303.1,3302.3,0.9790024]
[1768649450276,0.15141,3303.3,3302.3,0.9790024]
[1768649450277,1.16266536,3303.0,3302.3,0.9790024]
[1768649450479,1.16266536,3302.9,3302.3,0.9790024]
[1768649450777,0.13500362,3303.5,3302.3,0.9790024]
[1768649451078,1.16268302,3303.4,3302.3,0.9790024]
[1768649451277,1.16268302,3303.3,3301.9,0.97885598]
[1768649451471,1.16268302,3303.2,3301.9,0.97885598]
[1768649451672,1.16268302,3303.1,3301.9,0.97885598]
[1768649451872,1.16268302,3303.0,3301.9,0.97885598]
[1768649452080,0.90945077,3302.9,3301.9,0.97885598]
[1768649452379,0.13500362,3303.5,3301.9,0.97885598]
[1768649452580,1.16265685,3303.4,3301.9,0.97885598]
[1768649452783,1.16265685,3303.3,3301.9,0.97885598]
[1768649453079,1.16265685,3303.2,3301.9,0.97885598]
[1768649453282,1.16265685,3303.1,3301.9,0.97885598]
[1768649453481,1.16265685,3303.0,3301.9,0.97885598]
[1768649453682,0.90943023,3302.9,3301.9,0.97885598]
[1768649453883,1.82500362,3303.5,3301.9,0.97885598]
[1768649454085,1.16263102,3303.4,3301.9,0.97885598]
[1768649454382,1.16263102,3303.3,3301.9,0.97885598]
[1768649454585,1.16263102,3303.2,3301.9,0.97885598]
[1768649454886,1.16263102,3303.1,3301.9,0.97885598]
[1768649455184,1.16263102,3303.0,3301.9,0.97885598]
[1768649455383,0.90940971,3302.9,3301.9,0.97885598]
[1768649455590,1.82500362,3303.5,3301.9,0.97885598]
[1768649455780,1.16258775,3303.4,3301.9,0.97885598]
[1768649455976,1.16258775,3303.3,3301.9,0.97885598]
[1768649456176,1.16258775,3303.2,3301.9,0.97885598]
[1768649456473,1.16258775,3303.1,3301.9,0.97885598]
[1768649456673,1.16258775,3303.0,3301.9,0.97885598]
[1768649456882,0.90937547,3302.9,3301.9,0.97885598]
[1768649457081,1.82500362,3303.5,3301.9,0.97885598]
[1768649457283,1.16257716,3303.4,3301.9,0.97885598]
[1768649457485,1.16257716,3303.3,3301.9,0.97885598]
[1768649457681,1.16257716,3303.2,3301.9,0.97885598]
[1768649457882,1.16257716,3303.1,3301.9,0.97885598]
[1768649458182,1.16257716,3303.0,3301.9,0.97885598]
[1768649458375,0.90936713,3302.9,3301.9,0.97885598]
[1768649458575,1.82500362,3303.5,3301.9,0.97885598]
[1768649458776,1.16257135,3303.4,3301.9,0.97885598]
[1768649458976,1.16257135,3303.3,3301.9,0.97885598]
[1768649459177,1.16257135,3303.2,3301.9,0.97885598]
[1768649459475,1.16257135,3303.1,3301.9,0.97885598]
[1768649459676,1.16257135,3303.0,3301.9,0.97885598]
[1768649459984,0.90936232,3302.9,3301.9,0.97885598]
[1768649460186,0.13978829,3303.4,3301.9,0.97885598]
[1768649460485,1.16230159,3303.3,3301.9,0.97885598]
[1768649460684,1.16230159,3303.2,3301.9,0.97885598]
[1768649460876,0.90909235,3303.1,3301.9,0.97885598]
[1768649461076,0.90909235,3303.0,3301.9,0.97885598]
[1768649461281,0.13978829,3303.4,3301.9,0.97885598]
[1768649461482,1.16231157,3303.3,3301.9,0.97885598]
[1768649461684,1.16231157,3303.2,3301.9,0.97885598]
[1768649461883,0.90909822,3303.1,3301.9,0.97885598]
[1768649462076,0.90909822,3303.0,3301.9,0.97885598]
[1768649462280,0.13978829,3303.4,3301.9,0.97885598]
[1768649462480,1.16239685,3303.3,3301.9,0.97885598]
[1768649462782,1.16239685,3303.2,3301.9,0.97885598]
[1768649463083,0.90915367,3303.1,3301.9,0.97885598]
[1768649463283,0.90915367,3303.0,3301.9,0.97885598]
[1768649463473,0.13978829,3303.4,3301.9,0.97885598]
[1768649463680,1.16242474,3303.3,3301.9,0.97885598]
[1768649463975,1.16242474,3303.2,3301.9,0.97885598]
[1768649464174,1.16242474,3303.1,3301.9,0.97885598]
[1768649464472,0.9091749,3303.0,3301.9,0.97885598]
[1768649464671,0.90919427,3302.9,3301.9,0.97885598]
[1768649464881,0.13978829,3303.4,3301.9,0.97885598]
[1768649465182,1.16244992,3303.3,3301.9,0.97885598]
[1768649465382,1.16244992,3303.2,3301.9,0.97885598]
[1768649465575,1.16244992,3303.1,3301.9,0.97885598]
[1768649465776,0.90919411,3303.0,3301.9,0.97885598]
[1768649466075,0.90919411,3302.9,3301.9,0.97885598]
[1768649466275,0.13978829,3303.4,3301.9,0.97885598]
[1768649466471,1.16248648,3303.3,3301.9,0.97885598]
[1768649466687,1.16248999,3303.2,3301.9,0.97885598]
[1768649466880,1.16248999,3303.1,3301.9,0.97885598]
[1768649467079,0.90923009,3303.0,3301.9,0.97885598]
[1768649467280,0.90923009,3302.9,3301.9,0.97885598]
[1768649467479,0.90923009,3302.8,3301.9,0.97885598]
[1768649467685,0.13978829,3303.4,3301.9,0.97885598]
[1768649467877,1.1624874,3303.3,3301.9,0.97885598]
[1768649468079,1.1624874,3303.2,3301.9,0.97885598]
[1768649468385,1.1624874,3303.1,3301.9,1.11020505]
[1768649468578,0.90922714,3303.0,3301.9,1.11020505]
[1768649468780,0.90922714,3302.9,3301.9,1.11020505]
[1768649468978,0.90922714,3302.8,3301.9,1.11020505]
[1768649469178,0.13978829,3303.4,3301.9,1.11020505]
[1768649469379,1.16247847,3303.3,3301.9,1.11020505]
[1768649469589,1.16247847,3303.2,3301.9,1.11020505]
[1768649469789,0.90922367,3303.1,3301.9,1.11020505]
[1768649469991,0.90922367,3303.0,3301.9,1.11020505]
[1768649470289,0.90922367,3302.9,3301.9,1.11020505]
[1768649470479,0.13978829,3303.4,3301.9,1.11020505]
[1768649470676,0.25322044,3303.3,3301.9,1.11020505]
[1768649470880,0.13978829,3303.4,3301.9,1.11020505]
[1768649471175,0.25322044,3303.3,3301.9,1.11020505]
[1768649471378,0.13978829,3303.4,3301.9,1.11020505]
[1768649471584,0.25319946,3303.3,3301.9,1.11020505]
[1768649471787,0.13978829,3303.4,3301.9,1.11020505]
[1768649471985,0.25319885,3303.3,3301.9,1.11020505]
[1768649472186,0.13978829,3303.4,3301.9,1.11020505]
[1768649472387,0.25319885,3303.3,3301.9,1.11020505]
[1768649472588,0.13978829,3303.4,3301.9,1.11020505]
[1768649472789,0.25318357,3303.3,3301.9,1.11020505]
[1768649473089,0.13978829,3303.4,3301.9,1.11020505]
[1768649473282,0.25318357,3303.3,3301.9,1.11020505]
[1768649473485,0.13978829,3303.4,3301.9,1.11020505]
[1768649473680,0.25317247,3303.3,3301.9,1.11020505]
[1768649473992,0.13978829,3303.4,3301.9,1.11020505]
[1768649474185,0.25317247,3303.3,3301.9,1.11020505]
[1768649474481,0.13978829,3303.4,3301.9,1.11020505]
[1768649474680,0.25316451,3303.3,3301.9,1.11020505]
[1768649474879,0.13978829,3303.4,3301.9,1.11020505]
[1768649475087,0.2531614,3303.3,3301.9,1.11020505]
[1768649475279,0.13978829,3303.4,3301.9,1.11020505]
[1768649475485,0.25315426,3303.3,3301.9,1.11020505]
[1768649475686,0.13978829,3303.4,3301.9,1.11020505]
[1768649475884,0.25315892,3303.3,3301.9,1.11020505]
[1768649476081,0.13978829,3303.4,3301.9,1.11020505]
[1768649476284,0.25315892,3303.3,3301.9,1.11020505]
[1768649476485,0.13978829,3303.4,3301.9,1.11020505]
[1768649476685,0.25315477,3303.3,3301.9,1.11020505]
[1768649476983,0.13978829,3303.4,3301.9,1.11020505]
[1768649477183,0.25315477,3303.3,3301.9,1.11020505]
[1768649477386,0.13978829,3303.4,3301.9,1.11020505]
[1768649477586,0.25315253,3303.3,3301.9,1.11020505]
[1768649477794,0.13978829,3303.4,3301.9,1.11020505]
[1768649477994,0.25315149,3303.3,3301.9,1.11020505]
[1768649478196,0.13978829,3303.4,3301.9,1.11020505]
[1768649478382,0.25315149,3303.3,3301.9,1.11020505]
[1768649478586,0.13978829,3303.4,3301.9,1.11020505]
[1768649478789,0.25315038,3303.3,3301.9,1.11020505]
[1768649478988,0.13978829,3303.4,3301.9,1.11020505]
[1768649479188,0.25315038,3303.3,3301.9,1.11020505]
[1768649479397,0.13978829,3303.4,3301.9,1.11020505]
[1768649479596,0.25314872,3303.3,3301.9,1.11020505]
[1768649479796,0.13978829,3303.4,3301.9,1.11020505]
[1768649480001,0.2531486,3303.3,3301.9,1.11020505]
[1768649480194,0.13978829,3303.4,3301.9,1.11020505]